Cogmind - Beta 11.1 @@@ ROGUE MODE // 2022.05.21 @ 00:31:04 Player: ktur Result: Destroyed by D-53 Grenadier with Mini Grenade Launcher Performance ------------- Evolutions (0) 0 Regions Visited (2) 400 Robots Destroyed (13) 65 Value Destroyed (306) 306 Prototype IDs (0) 0 Alien Tech Used (0) 0 Bonus (0) 0 TOTAL SCORE: 771 Bonus ------- None Cogmind --------- Core Integrity 0/250 Matter 297/300 Energy 80/100 System Corruption 0% Temperature Cool (0) Movement Core (400) Ox7 Location -10/Mines Parts ------- > --- POWER (1) -------- (None) > --- PROPULSION (2) --- (None) > --- UTILITY (2) ------ Improved Heat Sink Large Storage Unit > --- WEAPON (2) ------- Beam Cannon > --- INVENTORY (15) --- Light Ion Engine Light Treads Compact Wheel Medium Storage Unit High-capacity Matter Pod (34) Signal Interpreter Seismic Detector Light Assault Rifle Light Assault Rifle Light Assault Rifle Rocket Launcher Hammer Peak State ------------ > --- POWER ------------ Light Ion Engine > --- PROPULSION ------- Light Treads Light Treads > --- UTILITY ---------- Improved Heat Sink Large Storage Unit > --- WEAPON ----------- Assault Rifle Rocket Launcher > --- INVENTORY -------- Light Ion Engine Light Treads Compact Wheel Medium Storage Unit High-capacity Matter Pod Signal Interpreter Seismic Detector Beam Cannon Light Assault Rifle Light Assault Rifle Light Assault Rifle Hammer [Rating: 11] Favorites ----------- Power Light Ion Engine Engine Light Ion Engine Propulsion Light Treads Treads Light Treads Utility Improved Heat Sink Device Improved Heat Sink Storage Small Storage Unit Weapon Assault Rifle Energy Cannon Beam Cannon Ballistic Gun Assault Rifle Launcher Rocket Launcher Build | -11 -10 -10 ------- Run | Scr Mat Min Slots Evolved . | . . . Power . | . . . Propulsion . | . . . Utility . | . . . Weapon . | . . . Parts Attached 11 | 6 3 2 Power 2 | 1 1 . Engine 2 | 1 1 . Core . | . . . Reactor . | . . . Propulsion 2 | 2 . . Treads 2 | 2 . . Leg . | . . . Wheel . | . . . Hover . | . . . Flight . | . . . Utility 3 | 1 2 . Device 1 | . 1 . Storage 2 | 1 1 . Processor . | . . . Hackware . | . . . Protection . | . . . Artifact . | . . . Weapon 4 | 2 . 2 Energy Gun . | . . . Energy Cannon 1 | . . 1 Ballistic Gun 2 | 2 . . Ballistic Cannon . | . . . Launcher 1 | . . 1 Special Weapon . | . . . Impact Weapon . | . . . Slashing Weapon . | . . . Piercing Weapon . | . . . Special Melee Weapon . | . . . Unidentified Prototypes . | . . . Parts Lost 4 | . . 4 Power 1 | . . 1 Propulsion 2 | . . 2 Utility . | . . . Weapon 1 | . . 1 Highest Loss Streak 4 | . . 4 To Critical Strikes . | . . . Average Slot Usage (%) 93 | . 92 95 Engine 13 | . 14 13 Treads 27 | . 28 26 Device 8 | . 7 14 Storage 14 | . 14 14 Ballistic Gun 27 | . 28 23 Naked Turns . | . . . Heaviest Build 30 | 11 27 30 Greatest Support 40 | 40 40 40 Greatest Overweight (x) . | . . . Average Overweight (x) . | . . . Largest Inventory Capacity 15 | 8 15 15 Average Capacity 11 | 7 10 15 Most Carried 12 | 6 10 12 Average Carried 8 | 2 8 10 Final Capacity 15 | 8 15 15 Final Carried 12 | 6 10 12 Class Distribution -------------------- 100% | Mutant Dominant Class ---------------- Mutant | -10/Materials Mutant | -10/Mines Resources | -11 -10 -10 ----------- Run | Scr Mat Min Matter Collected 499 | 232 233 34 Remotely . | . . . Salvage Created 403 | . 403 . Parts 23 | . 23 . Haulers Intercepted 1 | . 1 . Recyclers Shooed . | . . . Parts Field Recycled . | . . . Retrieved Matter . | . . . Parts Self-Destructed . | . . . Prevented . | . . . Kills | -11 -10 -10 ------- Run | Scr Mat Min Combat Hostiles Destroyed 9 | . 8 1 Guns 8 | . 8 . Cannons 1 | . . 1 Classes Destroyed 7 | . 6 1 Hauler 1 | . 1 . Recycler 1 | . 1 . Operator 1 | . 1 . Watcher 1 | . 1 . Swarmer 3 | . 3 . Grunt 5 | . 5 . Demolisher 1 | . . 1 Best Kill Streak 3 | . 3 1 Combat Bots Only 3 | . 3 1 Max Kills in Single Turn 2 | . 2 1 Gunslinging . | . . . Exploded . | . . . Melee . | . . . Uniques/NPCs Destroyed . | . . . Combat | -11 -10 -10 -------- Run | Scr Mat Min Damage Taken 842 | . 418 424 Core 252 | . 81 171 Absorbed by Shields . | . . . Core Remaining (%) 100 | 100 . . Volleys Fired 54 | . 47 7 Largest 2 | . 2 2 Hottest 80 | . 40 80 Shots Fired 102 | . 94 8 Gun 95 | . 94 1 Cannon 7 | . . 7 Launcher . | . . . Special . | . . . Kinetic 95 | . 94 1 Thermal 7 | . . 7 Explosive . | . . . Electromagnetic . | . . . Robot Hit Streak 13 | . 12 13 Robot Miss Streak 3 | . 3 . Penetration Max . | . . . Secondary Targets 3 | . 3 . Max Gunslinging Chain 1 | . 1 . Shots Hit Robots 72 | . 64 8 Core Hits 25 | . 23 2 Critical Kills . | . . . Critical Parts Destroyed . | . . . Critical Strikes . | . . . Melee Attacks . | . . . Impact . | . . . Slashing . | . . . Piercing . | . . . Sneak Attacks . | . . . Combat Hostiles . | . . . Follow-up Attacks . | . . . Damage Inflicted 866 | 7 722 137 Guns 728 | . 713 15 Cannons 122 | . . 122 Explosions . | . . . Melee . | . . . Ramming 16 | 7 9 . Kinetic 728 | . 713 15 Thermal 122 | . . 122 Explosive . | . . . Electromagnetic . | . . . Impact . | . . . Slashing . | . . . Piercing . | . . . Highest Corruption . | . . . Average Corruption . | . . . Corruption Purged . | . . . Corruption Blocked . | . . . Overload Shots . | . . . Overflow Damage . | . . . Projectiles . | . . . Explosions . | . . . Melee . | . . . Knockbacks . | . . . Impact . | . . . Kinetic . | . . . Secondary . | . . . Self-Inflicted Damage . | . . . Shots . | . . . Rammed 4 | 2 2 . Targets Rammed 4 | 2 2 . Kicked . | . . . Crushed . | . . . Highest Temperature 34 | . 34 . Average Temperature 18 | . 18 . Received Heat Transfer 189 | . 189 . Siege Activations . | . . . Robots Corrupted . | . . . Combat Hostiles . | . . . Parts Fried . | . . . Impact Corruptions . | . . . Robots Melted . | . . . Combat Hostiles . | . . . Parts Melted . | . . . Heat Transferred 259 | . . 259 Parts Sabotaged . | . . . Parts Stolen . | . . . Parts Stripped . | . . . Power Chain Reactions . | . . . Missiles Intercepted . | . . . Alert | -11 -10 -10 ------- Run | Scr Mat Min Peak Influence 195 | . 195 56 Initial 45 | . . 45 Average 70 | . 81 44 Maximum Alert Level . | . . . Low Security (%) 100 | 100 100 100 Level 1 . | . . . Level 2 . | . . . Level 3 . | . . . Level 4 . | . . . Level 5 . | . . . High Security . | . . . Max Security . | . . . Squads Dispatched 3 | . 3 . Investigation 1 | . 1 . Extermination . | . . . Reinforcement 2 | . 2 . Assault . | . . . Garrison . | . . . Intercept . | . . . Searches Triggered . | . . . Construction Impeded . | . . . Haulers Reinforced . | . . . Active Scanning Responses . | . . . Cargo Convoy Interrupts . | . . . Stealth | -11 -10 -10 --------- Run | Scr Mat Min Distress Signals . | . . . Communications Jammed . | . . . Distress Signals . | . . . Times Spotted 21 | . 18 3 Peak Tracking Total 8 | . 4 8 Tactical Retreats 1 | . . 1 Traps | -11 -10 -10 ------- Run | Scr Mat Min Traps Triggered . | . . . Indirectly . | . . . Trap Hack Attempts . | . . . Triggered . | . . . Disarmed . | . . . Reprogrammed . | . . . Reused . | . . . Traps Extracted . | . . . Installed . | . . . Triggered . | . . . Machines | -11 -10 -10 ---------- Run | Scr Mat Min Machines Disabled . | . . . Max in Single Turn . | . . . Machines Sabotaged . | . . . Garrisons Compromised . | . . . Overloaded Fab Kills . | . . . Hacking | -11 -10 -10 --------- Run | Scr Mat Min Machines Accessed 5 | . 5 . Terminals 4 | . 4 . Fabricators . | . . . Repair Stations . | . . . Recycling Units 1 | . 1 . Scanalyzers . | . . . Garrison Access . | . . . Total Hacks 12 | . 12 . Successful 6 | . 6 . Failed 6 | . 6 . Catastrophic 3 | . 3 . Database Lockouts . | . . . Manual 8 | . 8 . Terminals 11 | . 11 . Fabricators . | . . . Repair Stations . | . . . Recycling Units 1 | . 1 . Scanalyzers . | . . . Garrison Access . | . . . Terminal Hacks 4 | . 4 . Robot Analysis 1 | . 1 . Alert Level 1 | . 1 . Recall Reinforcements 1 | . 1 . Hauler Manifests 1 | . 1 . Fabricator Hacks . | . . . Repair Station Hacks . | . . . Recycling Unit Hacks . | . . . Scanalyzer . | . . . Garrison Access Hacks . | . . . Unauthorized Hacks 2 | . 2 . Terminals 2 | . 2 . Track 1 | . 1 . Operators 1 | . 1 . Fabricators . | . . . Repair Stations . | . . . Recycling Units . | . . . Scanalyzers . | . . . Garrison Access . | . . . Data Cores Recovered . | . . . Used . | . . . Hacking Detections 5 | . 5 . Full Trace Events 1 | . 1 . Feedback Events . | . . . Feedback Blocked . | . . . Robot Schematics Acquired . | . . . Robots Built . | . . . Authchips . | . . . Time . | . . . Total Robot Build Rating . | . . . Part Schematics Acquired . | . . . Parts Built . | . . . Authchips . | . . . Time . | . . . Total Part Build Rating . | . . . Parts Repaired . | . . . Time . | . . . Parts Recycled . | . . . Recycled Matter . | . . . Retrieved Matter . | . . . Retrieved Components . | . . . Parts Scanalyzed . | . . . Part Schematics Acquired . | . . . Parts Damaged . | . . . Bothacking | -11 -10 -10 ------------ Run | Scr Mat Min Used RIF Installer . | . . . Robots Hacked . | . . . Non-combat . | . . . Combat . | . . . Robot Hacks Applied . | . . . Relay Couplers Released . | . . . Fabnet Peak Effective % . | . . . Robots Rewired . | . . . Allies Hacked . | . . . Hacks Repelled . | . . . Allies | -11 -10 -10 -------- Run | Scr Mat Min Total Allies 1 | . . 1 Largest Group 1 | . . 1 Highest-Rated Group 31 | . . 31 Highest-Rated Ally 31 | . . 31 Total Orders . | . . . Ally Attacks 9 | . . 9 Total Damage 145 | . . 145 Kills 2 | . . 2 Allies Corrupted . | . . . Allies Melted . | . . . Intel | -11 -10 -10 ------- Run | Scr Mat Min Robot Analysis Total 1 | . 1 . Derelict Logs Recovered . | . . . Drone Launches . | . . . Drone Recoveries . | . . . Exploration | -11 -10 -10 ------------- Run | Scr Mat Min Turns Passed 1309 | 100 1046 163 Spaces Moved 705 | 59 556 90 Core 10 | 10 . . Treads 695 | 49 556 90 Legs . | . . . Wheels . | . . . Hover . | . . . Flight . | . . . Fastest Speed 50 | 50 160 160 Average Speed 158 | 141 160 160 Slowest Speed 160 | 160 160 160 Overloaded Moves . | . . . Propulsion Burnouts . | . . . Robots Hopped . | . . . Cave-ins Triggered . | . . . Exploration Rate (%) 28 | 5 61 18 Regions Visited 2 Branch Regions 1 Pre-discovered Areas . | . . . Known Exits Taken . | . . . Unknown Exits Taken 2 | 1 1 . Scrap Searched 1 | . . 1 Spaces Dug . | . . . Terrain Destroyed . | . . . Melee . | . . . Projectile . | . . . AOE . | . . . Terrain Rammed . | . . . Walls Destroyed . | . . . Machines Disabled . | . . . Actions | -11 -10 -10 --------- Run | Scr Mat Min Total 802 | 72 629 101 Wait 6 | . 6 . Move 704 | 59 555 90 Hop . | . . . Pick Up 16 | 6 9 1 Fast Attach 9 | 6 2 1 Attach . | . . . Detach 1 | . . 1 Swap 2 | . 1 1 Drop 7 | . 7 . Fire 54 | . 47 7 Melee . | . . . Ram . | . . . Kick . | . . . Crush 3 | 1 2 . Escape Stasis . | . . . Rewire . | . . . Trap . | . . . Miscellaneous . | . . . Route ------- -11/Scrapyard -10/Materials (discovered 5 exits: [*Mat x3] / [*Min x2]) -10/Mines History --------- Turn | Location | Event 3 | -11/Scrapyard | Discovered new exit (range 14) 101 | -11/Scrapyard | Entered Materials 221 | -10/Materials | Discovered new exit (range 7) 308 | -10/Materials | Build established: Mutant 664 | -10/Materials | Discovered new exit (range 5) 742 | -10/Materials | Discovered new exit (range 11) 743 | -10/Materials | Discovered new exit (range 12) 996 | -10/Materials | Discovered new exit (range 11) 1147 | -10/Materials | Entered Mines 1150 | -10/Mines | Received a Mining Laser from a helpful Derelict 1276 | -10/Mines | Assembled infested the area 1277 | -10/Mines | Received a Rocket Launcher from a helpful Derelict 1299 | -10/Mines | Core integrity fell below 50% 1305 | -10/Mines | Core integrity fell below 20% 1310 | -10/Mines | Destroyed by D-53 Grenadier with Mini Grenade Launcher Last Messages --------------- 01276_ LY-PNH(g): "Need a small hole in the wall? Leave that to the mining laser wimps, I say!" 01277_ LY-PNH(g): "Would you like a rocket launcher? I know I would if I were you, so I'm going to lend you mine." 01277_ LY-PNH(g) slips back into the shadows. 01287_ Acquired Rocket Launcher. 01294_ C-30 ARC bursts open, deploying its payload. 01294_ D-53 Grenadier unfolds itself. 01294_ K-01 Serf destroyed. 01296_ T-07 Excavator destroyed. 01298_ K-01 Serf collects debris. 01298_ Assault Rifle destroyed. 01299_ D-53 Grenadier destroyed. 01300_ The unstable cave ceiling collapses. 01300_ Lgt. Treads destroyed. 01301_ K-01 Serf collects debris. 01302_ Lgt. Ion Engine destroyed. 01302_ Lgt. Treads destroyed. 01303_ The unstable cave ceiling collapses. 01305_ K-01 Serf collects debris. Map ----- +----------------------------------------------------+ | ?????????# ##?????????????????????????? | | ????????# #?????????????????????????? | | ????????# ### #?????????????????????????? | | ??????????????????# ##?????????????????????????? | | ??????????????????# #??????????????????????????? | | ??????????????????# #??????????????????????????? | | ??????????????????# #??????????????????????????? | | ??????????????????# #??????????????????????????? | | ??????????????????# #??????????????????????????? | | ??????????????????# #??????????????????????????? | | ??????????????????# #??????????????????????????? | | ??????????????????# #############??????????????? | | ??????????????????# #??????????????? | | ??????????????????# ########### #??????????????? | | ??????????????????# #?????????# #??????????????? | | ???????????????#??# #?????????#=#??????????????? | | ???????????????# ## #?????????# #??????????????? | | ???????????????# #?????????# #??????????????? | | ???????????????#### #?????????# #######????????? | | ??????????????????# #?????????# #????????? | | ??????????????????# ########??####### #????????? | | ??????????????????# ## ##?????### #????????? | | ??????????????????# k= d ##???## ##???????? | | ??????????????????# #???# ##??????? | | ??????????????????### #???# ##?????? | | ????????????????????# @ #???## ####??? | | ????????????????????# #????# #??? | | ????????????????????## #????## #??? | | ????????????????????## ##?????## | #??? | | ???????????????????## ##???????## ##??? | | ???????????????????# ####?????????# ##???? | | ???????????????????# ##????????????## ##????? | | ???????????????????## #??????????????####?????? | | ????????????????? #??????????????????????? | | ????????????????# ?????????????????????? | | ????????????????# ### ???????????????????? | | ????????????????# ??## ?????????????????? | | ????????????????# ????## ???????????????? | | ???????????????? ???????# #??????????????? | | ???????????????##????????# ##??????????????? | | ??????????????????????????# ##???????????????? | | ??????????????????????????? #????????????????? | | ???????????????????????????? ##????????????????? | | ????????????????????????????###?????????????????? | | ????????????????????????????????????????????????? | | ????????????????????????????????????????????????? | | ????????????????????????????????????????????????? | | ????????????????????????????????????????????????? | | ????????????????????????????????????????????????? | | ????????????????????????????????????????????????? | +----------------------------------------------------+ Best States ------------- Heat Dissipation 39 Energy Generation 10 Energy Capacity 125 Matter Stores 300 Matter Capacity 300 Sight Range 16 Terrain Scan Density 10 Evasion (%) 40 Recoil Reduction 2 Item Schematics ----------------- None Robot Schematics ------------------ None Fabricated ------------ Nothing Alien Tech Used ----------------- None Achievements -------------- None Challenges ------------ None Game ------ Seed FortressSapperGravjet Manual? 0 Play Time 00:07:55 Cumulative 419.4 hours Start 2022.05.21 @ 00:19:06 End 2022.05.21 @ 00:31:04 Sessions 4 Manual Loads 0 Difficulty Rogue Special Mode None Game No. 411 Rogue 411 Adventurer 0 Explorer 0 Win Type - Total 21 Types 13/2/3/2/0/0/0/1/0 Lore% 92 Gallery% 91 Achievement% 76 Wizard Run 0 Options --------- ASCII 0 Keyboard 0 Movement Arrows Keybinds 0 Fullscreen 1 Font 18/Smallcaps Map View 76x50 Tactical HUD 1 Map Filters NONE Filters NONE Steam 1 RUN: 72f727be-05e2-4c12-a6c1-8bcf87b76bc3